Cogmind - Beta 11.1 @@@ ROGUE MODE // 2022.08.24 @ 02:18:55 Player: eldritch Result: Self-destructed Performance ------------- Evolutions (0) 0 Regions Visited (4) 800 Robots Destroyed (5) 25 Value Destroyed (141) 141 Prototype IDs (23) 460 Alien Tech Used (0) 0 Bonus (425) 425 TOTAL SCORE: 1851 Bonus ------- Follower Combat Kills 138 Aligned with FarCom 300 Friendly Fire -13 Cogmind --------- Core Integrity 180/250 Matter 148/300 Energy 310/310 System Corruption 0% Temperature Cool (62) Movement Walking (190) Ox1 Location -9/Mines Parts ------- > --- POWER (1) -------- Fission Core > --- PROPULSION (2) --- Aluminum Leg Aluminum Leg > --- UTILITY (2) ------ Medium Storage Unit Targeting Computer > --- WEAPON (2) ------- Medium Laser > --- INVENTORY (10) --- Light Ion Engine Fission Core Light Fission Core Aluminum Leg Wheel Compact Matter Pod (150) Experimental Sensor Array Improved Light Armor Plating Skeleton Box Assault Rifle Peak State ------------ > --- POWER ------------ Fission Core > --- PROPULSION ------- Aluminum Leg Aluminum Leg > --- UTILITY ---------- Medium Storage Unit Targeting Computer > --- WEAPON ----------- Medium Laser Grenade Launcher > --- INVENTORY -------- Light Ion Engine Fission Core Light Fission Core Aluminum Leg Wheel Compact Matter Pod Experimental Sensor Array Improved Light Armor Plating Skeleton Box Assault Rifle [Rating: 14] Favorites ----------- Power Ion Engine Engine Ion Engine Power Core Fission Core Propulsion Aluminum Leg Leg Aluminum Leg Utility Targeting Computer Storage Medium Storage Unit Processor Targeting Computer Weapon Medium Laser Energy Gun Medium Laser Ballistic Gun Assault Rifle Launcher Grenade Launcher Build | -11 -10 -10 -10 -9 ------- Run | Scr Mat Min Exi Min Slots Evolved . | . . . . . Power . | . . . . . Propulsion . | . . . . . Utility . | . . . . . Weapon . | . . . . . Parts Attached 11 | . 4 3 . 4 Power 1 | . . . . 1 Engine . | . . . . . Core 1 | . . . . 1 Reactor . | . . . . . Propulsion 1 | . . 1 . . Treads . | . . . . . Leg 1 | . . 1 . . Wheel . | . . . . . Hover . | . . . . . Flight . | . . . . . Utility 2 | . 1 1 . . Device . | . . . . . Storage 1 | . . 1 . . Processor 1 | . 1 . . . Hackware . | . . . . . Protection . | . . . . . Artifact . | . . . . . Weapon 7 | . 3 1 . 3 Energy Gun 3 | . 1 1 . 1 Energy Cannon . | . . . . . Ballistic Gun . | . . . . . Ballistic Cannon . | . . . . . Launcher 4 | . 2 . . 2 Special Weapon . | . . . . . Impact Weapon . | . . . . . Slashing Weapon . | . . . . . Piercing Weapon . | . . . . . Special Melee Weapon . | . . . . . Unidentified Prototypes . | . . . . . Parts Lost 1 | . . . . 1 Power . | . . . . . Propulsion . | . . . . . Utility . | . . . . . Weapon 1 | . . . . 1 Highest Loss Streak 1 | . . . . 1 To Critical Strikes . | . . . . . Average Slot Usage (%) 98 | . 95 100 100 100 Engine 12 | . 14 14 14 8 Core 1 | . . . . 6 Leg 28 | . 28 28 28 28 Storage 14 | . 14 14 14 14 Processor 12 | . 9 14 14 14 Energy Gun 13 | . 11 14 14 11 Ballistic Gun 12 | . 14 14 14 7 Launcher 2 | . 2 . . 9 Naked Turns . | . . . . . Heaviest Build 25 | 14 15 19 19 25 Greatest Support 20 | 20 20 20 20 20 Greatest Overweight (x) 1 | . . . . 1 Average Overweight (x) . | . . . . . Largest Inventory Capacity 10 | . 8 10 10 10 Average Capacity 9 | . 8 9 10 10 Most Carried 10 | . 7 10 10 10 Average Carried 8 | . 6 8 9 10 Final Capacity 10 | 8 8 10 10 10 Final Carried 10 | 6 7 10 10 10 Class Distribution -------------------- 100% | Mutant Dominant Class ---------------- Mutant | -10/Materials Mutant | -10/Mines Mutant | -10/Exiles Mutant | -9/Mines Resources | -11 -10 -10 -10 -9 ----------- Run | Scr Mat Min Exi Min Matter Collected 406 | 179 54 154 . 19 Remotely . | . . . . . Salvage Created 142 | . 19 66 . 57 Parts 6 | . 6 . . . Haulers Intercepted . | . . . . . Recyclers Shooed 2 | . . 2 . . Parts Field Recycled . | . . . . . Retrieved Matter . | . . . . . Parts Self-Destructed . | . . . . . Prevented . | . . . . . Kills | -11 -10 -10 -10 -9 ------- Run | Scr Mat Min Exi Min Combat Hostiles Destroyed 14 | . 3 2 . 9 Guns 4 | . 1 1 . 2 AOE 9 | . 2 1 . 6 Classes Destroyed 3 | . 1 1 . 1 Swarmer 3 | . 3 . . . Grunt 2 | . . 2 . . Assembled 9 | . . . . 9 Best Kill Streak 5 | . 3 2 . 5 Combat Bots Only 5 | . 3 2 . 5 Max Kills in Single Turn 2 | . 2 1 . 2 Gunslinging . | . . . . . Exploded 2 | . 2 1 . 1 Melee . | . . . . . Uniques/NPCs Destroyed . | . . . . . Combat | -11 -10 -10 -10 -9 -------- Run | Scr Mat Min Exi Min Damage Taken 459 | . 50 84 . 325 Core 70 | . 15 18 . 37 Absorbed by Shields . | . . . . . Core Remaining (%) 100 | 100 . . . . Volleys Fired 33 | . 5 13 . 15 Largest 2 | . 2 2 . 2 Hottest 80 | . 70 70 . 80 Shots Fired 58 | . 6 24 . 28 Gun 42 | . 2 22 . 18 Cannon . | . . . . . Launcher 16 | . 4 2 . 10 Special . | . . . . . Kinetic 16 | . 1 11 . 4 Thermal 26 | . 1 11 . 14 Explosive 16 | . 4 2 . 10 Electromagnetic . | . . . . . Robot Hit Streak 8 | . 1 5 . 8 Robot Miss Streak 2 | . 1 1 . 2 Penetration Max . | . . . . . Secondary Targets . | . . . . . Shots Hit Robots 31 | . 1 15 . 15 Core Hits 24 | . 3 8 . 13 Critical Kills . | . . . . . Critical Parts Destroyed . | . . . . . Critical Strikes 1 | . . . . 1 Burn 1 | . . . . 1 Melee Attacks . | . . . . . Impact . | . . . . . Slashing . | . . . . . Piercing . | . . . . . Sneak Attacks . | . . . . . Combat Hostiles . | . . . . . Follow-up Attacks . | . . . . . Damage Inflicted 911 | . 146 283 . 482 Guns 331 | . 13 210 . 108 Cannons . | . . . . . Explosions 547 | . 124 73 . 350 Melee . | . . . . . Ramming 33 | . 9 . . 24 Kinetic 155 | . . 134 . 21 Thermal 176 | . 13 76 . 87 Explosive 547 | . 124 73 . 350 Electromagnetic . | . . . . . Impact . | . . . . . Slashing . | . . . . . Piercing . | . . . . . Highest Corruption . | . . . . . Average Corruption . | . . . . . Corruption Purged . | . . . . . Corruption Blocked . | . . . . . Overload Shots . | . . . . . Overflow Damage 53 | . . . . 53 Projectiles . | . . . . . Explosions 53 | . . . . 53 Melee . | . . . . . Knockbacks . | . . . . . Impact . | . . . . . Kinetic . | . . . . . Secondary . | . . . . . Self-Inflicted Damage 51 | . 10 20 . 21 Shots 4 | . 1 1 . 2 Rammed . | . . . . . Targets Rammed 3 | . 1 . . 2 Kicked 3 | . 1 . . 2 Crushed . | . . . . . Highest Temperature 101 | . 9 63 . 101 Average Temperature 31 | . 6 23 . 38 Received Heat Transfer 76 | . . 36 . 40 Siege Activations . | . . . . . Robots Corrupted . | . . . . . Combat Hostiles . | . . . . . Parts Fried . | . . . . . Impact Corruptions 1 | . . . . 1 Robots Melted . | . . . . . Combat Hostiles . | . . . . . Parts Melted . | . . . . . Heat Transferred 592 | . 37 222 . 333 Parts Sabotaged . | . . . . . Parts Stolen . | . . . . . Parts Stripped . | . . . . . Power Chain Reactions . | . . . . . Missiles Intercepted . | . . . . . Alert | -11 -10 -10 -10 -9 ------- Run | Scr Mat Min Exi Min Peak Influence 272 | . 207 187 . 272 Initial 80 | . . 80 . . Average 145 | . 94 185 . 134 Maximum Alert Level 1 | . 1 . . 1 Low Security (%) 94 | . 99 100 . 79 Level 1 5 | . . . . 20 Level 2 . | . . . . . Level 3 . | . . . . . Level 4 . | . . . . . Level 5 . | . . . . . High Security . | . . . . . Max Security . | . . . . . Squads Dispatched . | . . . . . Investigation . | . . . . . Extermination . | . . . . . Reinforcement . | . . . . . Assault . | . . . . . Garrison . | . . . . . Intercept . | . . . . . Searches Triggered . | . . . . . Construction Impeded . | . . . . . Haulers Reinforced . | . . . . . Active Scanning Responses . | . . . . . Cargo Convoy Interrupts . | . . . . . Stealth | -11 -10 -10 -10 -9 --------- Run | Scr Mat Min Exi Min Distress Signals . | . . . . . Communications Jammed . | . . . . . Distress Signals . | . . . . . Times Spotted 27 | . 5 4 . 18 Peak Tracking Total 6 | . 3 2 . 6 Tactical Retreats 2 | . . . . 2 Traps | -11 -10 -10 -10 -9 ------- Run | Scr Mat Min Exi Min Traps Triggered . | . . . . . Indirectly . | . . . . . Trap Hack Attempts . | . . . . . Triggered . | . . . . . Disarmed . | . . . . . Reprogrammed . | . . . . . Reused . | . . . . . Traps Extracted . | . . . . . Installed . | . . . . . Triggered . | . . . . . Machines | -11 -10 -10 -10 -9 ---------- Run | Scr Mat Min Exi Min Machines Disabled 3 | . 1 . . 2 Max in Single Turn 1 | . 1 . . . Machines Sabotaged . | . . . . . Garrisons Compromised . | . . . . . Overloaded Fab Kills . | . . . . . Hacking | -11 -10 -10 -10 -9 --------- Run | Scr Mat Min Exi Min Machines Accessed 3 | . 2 . 1 . Terminals 2 | . 2 . . . Fabricators . | . . . . . Repair Stations . | . . . . . Recycling Units . | . . . . . Scanalyzers . | . . . . . Garrison Access . | . . . . . Total Hacks 8 | . 7 . 1 . Successful 5 | . 4 . 1 . Failed 3 | . 3 . . . Catastrophic . | . . . . . Database Lockouts . | . . . . . Manual 8 | . 7 . 1 . Terminals 7 | . 7 . . . Fabricators . | . . . . . Repair Stations . | . . . . . Recycling Units . | . . . . . Scanalyzers . | . . . . . Garrison Access . | . . . . . Terminal Hacks 4 | . 3 . 1 . Robot Analysis 1 | . 1 . . . Branch Access Points 1 | . 1 . . . Terminal Index 1 | . 1 . . . EX-Prototype ID Bank 1 | . . . 1 . Fabricator Hacks . | . . . . . Repair Station Hacks . | . . . . . Recycling Unit Hacks . | . . . . . Scanalyzer . | . . . . . Garrison Access Hacks . | . . . . . Unauthorized Hacks 1 | . 1 . . . Terminals 1 | . 1 . . . Botnet 1 | . 1 . . . Fabricators . | . . . . . Repair Stations . | . . . . . Recycling Units . | . . . . . Scanalyzers . | . . . . . Garrison Access . | . . . . . Data Cores Recovered . | . . . . . Used . | . . . . . Hacking Detections 2 | . 2 . . . Full Trace Events . | . . . . . Feedback Events . | . . . . . Feedback Blocked . | . . . . . Robot Schematics Acquired . | . . . . . Robots Built . | . . . . . Authchips . | . . . . . Time . | . . . . . Total Robot Build Rating . | . . . . . Part Schematics Acquired . | . . . . . Parts Built . | . . . . . Authchips . | . . . . . Time . | . . . . . Total Part Build Rating . | . . . . . Parts Repaired . | . . . . . Time . | . . . . . Parts Recycled . | . . . . . Recycled Matter . | . . . . . Retrieved Matter . | . . . . . Retrieved Components . | . . . . . Parts Scanalyzed . | . . . . . Part Schematics Acquired . | . . . . . Parts Damaged . | . . . . . Bothacking | -11 -10 -10 -10 -9 ------------ Run | Scr Mat Min Exi Min Used RIF Installer . | . . . . . Robots Hacked . | . . . . . Non-combat . | . . . . . Combat . | . . . . . Robot Hacks Applied . | . . . . . Relay Couplers Released . | . . . . . Fabnet Peak Effective % . | . . . . . Robots Rewired . | . . . . . Allies Hacked . | . . . . . Hacks Repelled . | . . . . . Allies | -11 -10 -10 -10 -9 -------- Run | Scr Mat Min Exi Min Total Allies 5 | . . 5 . . Largest Group 5 | . . 5 5 3 Highest-Rated Group 85 | . . 85 85 40 Highest-Rated Ally 31 | . . 31 31 16 Total Orders . | . . . . . Ally Attacks 35 | . . 2 . 33 Total Damage 348 | . . 22 . 326 Kills 7 | . . . . 7 Allies Corrupted . | . . . . . Allies Melted 1 | . . . . 1 Intel | -11 -10 -10 -10 -9 ------- Run | Scr Mat Min Exi Min Robot Analysis Total 1 | . 1 . . . Derelict Logs Recovered . | . . . . . Drone Launches . | . . . . . Drone Recoveries . | . . . . . Exploration | -11 -10 -10 -10 -9 ------------- Run | Scr Mat Min Exi Min Turns Passed 1218 | . 269 391 347 211 Spaces Moved 888 | 1 208 281 286 112 Core . | . . . . . Treads . | . . . . . Legs 888 | 1 208 281 286 112 Wheels . | . . . . . Hover . | . . . . . Flight . | . . . . . Fastest Speed 120 | 120 120 120 120 120 Average Speed 122 | 120 120 120 120 139 Slowest Speed 190 | 120 120 120 120 190 Overloaded Moves . | . . . . . Propulsion Burnouts . | . . . . . Robots Hopped . | . . . . . Cave-ins Triggered . | . . . . . Exploration Rate (%) 39 | 2 43 59 61 34 Regions Visited 4 Branch Regions 3 Pre-discovered Areas . | . . . . . Known Exits Taken 1 | . 1 . . . Unknown Exits Taken 3 | 1 . 1 1 . Scrap Searched 1 | . . 1 . . Spaces Dug 22 | . 22 . . . Terrain Destroyed 115 | . 30 14 . 71 Melee . | . . . . . Projectile . | . . . . . AOE 115 | . 30 14 . 71 Terrain Rammed . | . . . . . Walls Destroyed . | . . . . . Machines Disabled . | . . . . . Actions | -11 -10 -10 -10 -9 --------- Run | Scr Mat Min Exi Min Total 958 | . 219 312 291 136 Wait 12 | . 1 11 . . Move 884 | . 207 280 285 112 Hop . | . . . . . Pick Up 8 | . 1 3 3 1 Fast Attach 2 | . 1 . . 1 Attach . | . . . . . Detach . | . . . . . Swap 9 | . 3 3 . 3 Drop 7 | . . 2 3 2 Fire 33 | . 5 13 . 15 Melee . | . . . . . Ram . | . . . . . Kick 3 | . 1 . . 2 Crush . | . . . . . Escape Stasis . | . . . . . Rewire . | . . . . . Trap . | . . . . . Miscellaneous . | . . . . . Route ------- -11/Scrapyard -10/Materials (discovered 2 exits: [*Mat] / *Min) -10/Mines -10/Exiles -9/Mines History --------- Turn | Location | Event 1 | -11/Scrapyard | Discovered new exit (range 0) 1 | -11/Scrapyard | Entered Materials 126 | -10/Materials | Discovered new exit (range 15) 191 | -10/Materials | Identified exit to Mines 270 | -10/Materials | Entered Mines 314 | -10/Mines | Build established: Mutant 327 | -10/Mines | Met a Derelict bent on vengeance 600 | -10/Mines | Assisted by bots powering up and referring to "LRC-V3" 636 | -10/Mines | Found a damaged Exp. Sensor Array with a note attached 639 | -10/Mines | Found Prototype Device 646 | -10/Mines | Deemed a non-threat by the Exiles lab entrance 646 | -10/Mines | Discovered new exit (range 5) 661 | -10/Mines | Entered Exiles 661 | -10/Exiles | Accompanied by 5 allies 691 | -10/Exiles | Led the pair of lost Derelicts to a safe place 691 | -10/Exiles | Met 8R-AWN 711 | -10/Exiles | Met EX-HEX 837 | -10/Exiles | Met EX-BIN 852 | -10/Exiles | Aligned with FarCom system 853 | -10/Exiles | Given EX-Vault access code 882 | -10/Exiles | Opened EX-Vault 893 | -10/Exiles | Found Skeleton Box 917 | -10/Exiles | Warned to stay clear of 0b10 Research branches 932 | -10/Exiles | Exiles lab attacked by MAIN.C 997 | -10/Exiles | Discovered new exit (range 10) 1008 | -10/Exiles | Left Exiles lab with Skeleton Box 1008 | -10/Exiles | Entered Mines 1008 | -9/Mines | Accompanied by 3 allies 1011 | -9/Mines | Assembled infested the area 1016 | -9/Mines | Assisted by a Guerilla fighting off Assembled 1148 | -9/Mines | Found a hidden stash of uninstalled traps 1219 | -9/Mines | Self-destructed Last Messages --------------- 01153_ as-25978 destroyed. 01156_ Destroyed Asb. F-torch. 01156_ as-39428 destroyed. 01162_ Acquired 4 matter. 01181_ The unstable cave ceiling collapses. 01181_ as-17403 destroyed. 01186_ Destroyed Asb. F-torch. 01186_ as-85320 destroyed. 01188_ The unstable cave ceiling collapses. 01193_ Acquired 4 matter. 01194_ The unstable cave ceiling collapses. 01197_ as-00428 destroyed. 01200_ as-94438 destroyed. 01205_ The unstable cave ceiling collapses. 01210_ Kicked as-35946 out of the way. 01210_ Destroyed Asb. Hover Unit. 01210_ as-35946 system corrupted by crushing effect. 01211_ as-35946 system terminally corrupted. 01214_ Grenade Launcher destroyed. 01217_ The unstable cave ceiling collapses. Map ----- +----------------------------------------------------+ | ?## #?????????????????????????????????? | | ## #?????##??????????????????????????? | | #????? ##?????????????????????????? | | #### #???? ##????????????????????????? | | ### ##??## ##??? #????????????????????????? | | ??####????## ###? #????????????????????????? | | ??????????## ## #?????????????????????????? | | ??????????# # #??????????????????????????? | | ?????????### ###??????????????????????????? | | ########## % ##????????????????????????????? | | % % ##???????? ??????????????????? | | "" """ """* #?#####?#a#??????????????????? | | "" """ """% ### # ##?????????????????? | | "" "" "" ## ### #?????????????????? | | ###!% ###? < #?????????????????? | | "" """ "" # % #? ???#??????????????? | | "" """ """ [ ### #?? #??????????????? | | "" "" """%# # ## #? ### #??????????????? | | # ##?# ###????????????? | | ########### #= * #??# a ## a #????????????? | | ????###???## %! #??# ??????????????? | | ???## #??## *= #??# a ????????????????? | | #### ### ###### ??????????????????? | | != %* ####?## % % #???????????????????? | | *%! ##????# # # #?????????????????????? | | ###### #?????# @ #?????????????????????? | | ?????## *##??#### # #?????????????????????? | | ??????## ##### ###?????????????????????? | | ???????## # # ####???????????????????????? | | ????????#&& #??????????????????????????? | | ????????# # # #??????????????????????????? | | ???????# #####??????????????????????????? | | ??????# #####??????????????????????????????? | | ??????# ##??????????????????????????????????? | | ??????## ##???????????????????????????????????? | | ???????######????????????????????????????????????? | | ?????????????????????????????????????????????????? | | ?????????????????????????????????????????????????? | | ?????????????????????????????????????????????????? | | | | | | | | | | | | | | | | | | | | | | | +----------------------------------------------------+ Best States ------------- Heat Dissipation 25 Energy Generation 18 Energy Capacity 310 Matter Stores 300 Matter Capacity 300 Sight Range 16 Terrain Scan Density 10 Evasion (%) 55 Targeting Accuracy 5 Item Schematics ----------------- None Robot Schematics ------------------ None Fabricated ------------ Nothing Alien Tech Used ----------------- None Achievements -------------- None Challenges ------------ None Game ------ Seed SwarmEnergyPrototype Manual? 0 Play Time 00:11:03 Cumulative 251.5 hours Start 2022.08.24 @ 02:10:33 End 2022.08.24 @ 02:18:55 Sessions 1 Manual Loads 0 Difficulty Rogue Special Mode None Game No. 576 Rogue 576 Adventurer 0 Explorer 0 Win Type - Total 5 Types 4/0/0/1/0/0/0/0/0 Lore% 59 Gallery% 62 Achievement% 56 Wizard Run 0 Options --------- ASCII 0 Keyboard 0 Movement Numpad Keybinds 0 Fullscreen 1 Font 16/SmallcapsGlow Map View 75x55 Tactical HUD 1 Map Filters NONE Filters NONE Steam 1 RUN: d5b59849-bb3d-46e0-a4cd-11c32895050c